[Event "Live Chess"]
[Site "Chess.com"]
[Date "2023.09.16"]
[Round "-"]
[White "Mika635Isa"]
[Black "mary260210"]
[Result "1/2-1/2"]
[WhiteElo "539"]
[BlackElo "896"]
[TimeControl "900+5"]
[EndTime "8:00:16 PDT"]
[Termination "Empate por afogamento"]

1. e4 {[%clk 0:14:56.5]} 1... e5 {[%clk 0:15:02.6]} 2. Nf3 {[%clk 0:14:54]} 2...
Nc6 {[%clk 0:15:03.5]} 3. Nc3 {[%clk 0:14:38.3]} 3... d6 {[%clk 0:15:04.8]} 4.
Bc4 {[%clk 0:14:39.6]} 4... Be6 {[%clk 0:15:04.5]} 5. d3 {[%clk 0:14:41.9]} 5...
Bxc4 {[%clk 0:15:06.8]} 6. dxc4 {[%clk 0:14:45.2]} 6... Nf6 {[%clk 0:14:59.8]}
7. O-O {[%clk 0:14:44.6]} 7... Qe7 {[%clk 0:15:03.3]} 8. Bg5 {[%clk 0:14:38.6]}
8... h6 {[%clk 0:14:58.7]} 9. Bxf6 {[%clk 0:14:37]} 9... Qxf6 {[%clk 0:14:56]}
10. Nd5 {[%clk 0:14:21.1]} 10... Qe6 {[%clk 0:14:39.9]} 11. Nxc7+ {[%clk
0:14:20.4]} 11... Kd7 {[%clk 0:14:41.9]} 12. Nxa8 {[%clk 0:14:24.1]} 12... Qe8
{[%clk 0:14:43.4]} 13. c5 {[%clk 0:13:53.3]} 13... Qxa8 {[%clk 0:14:41.5]} 14.
cxd6 {[%clk 0:13:45.1]} 14... Bxd6 {[%clk 0:14:44.7]} 15. Qd2 {[%clk 0:13:34]}
15... Qe8 {[%clk 0:14:43.3]} 16. Rad1 {[%clk 0:13:32.1]} 16... Qe6 {[%clk
0:14:36]} 17. c4 {[%clk 0:13:11.5]} 17... Ke7 {[%clk 0:14:26.6]} 18. Rc1 {[%clk
0:10:58.4]} 18... Bb4 {[%clk 0:14:24.3]} 19. Qd3 {[%clk 0:10:31.9]} 19... Qd6
{[%clk 0:14:20.4]} 20. Qxd6+ {[%clk 0:10:33.8]} 20... Bxd6 {[%clk 0:14:23.5]}
21. Rc3 {[%clk 0:09:46.8]} 21... Bb4 {[%clk 0:14:22.2]} 22. Rd3 {[%clk
0:09:41.6]} 22... a5 {[%clk 0:14:23.3]} 23. a3 {[%clk 0:09:42.9]} 23... Bc5
{[%clk 0:14:22]} 24. Nd2 {[%clk 0:08:57.5]} 24... Nd4 {[%clk 0:14:21.3]} 25. Nb3
{[%clk 0:08:56.7]} 25... Nxb3 {[%clk 0:14:22.1]} 26. Rxb3 {[%clk 0:09:00.3]}
26... a4 {[%clk 0:14:19.2]} 27. Rxb7+ {[%clk 0:09:00.4]} 27... Ke6 {[%clk
0:14:21.5]} 28. Rc7 {[%clk 0:08:44.4]} 28... Bd6 {[%clk 0:14:23.2]} 29. Rb7
{[%clk 0:08:43.8]} 29... Rc8 {[%clk 0:14:22.8]} 30. Rc1 {[%clk 0:08:41.8]} 30...
Rb8 {[%clk 0:14:14.4]} 31. Rxb8 {[%clk 0:08:43.3]} 31... Bxb8 {[%clk 0:14:18.1]}
32. c5 {[%clk 0:08:47.4]} 32... f5 {[%clk 0:14:19.3]} 33. c6 {[%clk 0:08:48]}
33... fxe4 {[%clk 0:14:22.5]} 34. c7 {[%clk 0:08:51.7]} 34... Bxc7 {[%clk
0:14:26.5]} 35. Rxc7 {[%clk 0:08:54.9]} 35... Kf6 {[%clk 0:14:28.7]} 36. Ra7
{[%clk 0:08:58.4]} 36... g5 {[%clk 0:14:31]} 37. Rxa4 {[%clk 0:09:02.2]} 37...
Kf5 {[%clk 0:14:34.8]} 38. b4 {[%clk 0:09:02.7]} 38... h5 {[%clk 0:14:39.1]} 39.
b5 {[%clk 0:09:06.8]} 39... Kf4 {[%clk 0:14:43.5]} 40. b6 {[%clk 0:09:11.1]}
40... g4 {[%clk 0:14:43.8]} 41. b7 {[%clk 0:09:15.3]} 41... g3 {[%clk
0:14:47.9]} 42. hxg3+ {[%clk 0:09:12.1]} 42... Kg4 {[%clk 0:14:50.2]} 43. b8=Q
{[%clk 0:09:15.3]} 43... Kf5 {[%clk 0:14:52.6]} 44. Qf8+ {[%clk 0:09:17.3]}
44... Ke6 {[%clk 0:14:55.9]} 45. Qh6+ {[%clk 0:09:18.6]} 45... Kf5 {[%clk
0:14:58.6]} 46. f3 {[%clk 0:09:16.3]} 46... exf3 {[%clk 0:15:02]} 47. gxf3
{[%clk 0:09:20.3]} 47... e4 {[%clk 0:15:05.8]} 48. fxe4+ {[%clk 0:09:23.5]}
48... Kg4 {[%clk 0:15:07.1]} 49. Qg6+ {[%clk 0:09:24.6]} 49... Kh3 {[%clk
0:15:06]} 50. Ra5 {[%clk 0:09:27.7]} 50... h4 {[%clk 0:15:09.2]} 51. Rh5 {[%clk
0:09:30.3]} 1/2-1/2

[Event "Live Chess"]
[Site "Chess.com"]
[Date "2023.09.16"]
[Round "-"]
[White "RickBrasil"]
[Black "xadrecarloso"]
[Result "1-0"]
[WhiteElo "1884"]
[BlackElo "940"]
[TimeControl "900+5"]
[EndTime "8:00:22 PDT"]
[Termination "RickBrasil venceu por xeque-mate"]

1. e4 {[%clk 0:15:02.3]} 1... c5 {[%clk 0:15:03.5]} 2. Bc4 {[%clk 0:15:03.7]}
2... e6 {[%clk 0:15:06.3]} 3. Nc3 {[%clk 0:15:06.5]} 3... a6 {[%clk 0:15:06.6]}
4. f4 {[%clk 0:15:02.8]} 4... b5 {[%clk 0:15:10.7]} 5. Be2 {[%clk 0:15:05.9]}
5... Bb7 {[%clk 0:15:04.6]} 6. d3 {[%clk 0:15:09.4]} 6... Nf6 {[%clk 0:15:02.2]}
7. Bf3 {[%clk 0:15:12.9]} 7... d6 {[%clk 0:14:33.4]} 8. g4 {[%clk 0:15:14.2]}
8... d5 {[%clk 0:14:26.9]} 9. e5 {[%clk 0:15:15.1]} 9... Ne4 {[%clk 0:14:20.9]}
10. dxe4 {[%clk 0:15:15.4]} 10... dxe4 {[%clk 0:14:21.6]} 11. Qxd8+ {[%clk
0:15:13.9]} 11... Kxd8 {[%clk 0:14:23.8]} 12. Bxe4 {[%clk 0:15:18.2]} 12... Bc6
{[%clk 0:14:16.6]} 13. Bxc6 {[%clk 0:15:20.2]} 13... Nxc6 {[%clk 0:14:19.8]} 14.
Be3 {[%clk 0:15:23.1]} 14... Nd4 {[%clk 0:14:11.8]} 15. Bxd4 {[%clk 0:15:26.3]}
15... cxd4 {[%clk 0:14:13.7]} 16. O-O-O {[%clk 0:15:30.5]} 16... Bc5 {[%clk
0:14:10.5]} 17. Ne4 {[%clk 0:15:34.4]} 17... Bb6 {[%clk 0:14:02.6]} 18. Nd6
{[%clk 0:15:36.9]} 18... Ke7 {[%clk 0:14:02.9]} 19. Nf3 {[%clk 0:15:38.1]} 19...
f6 {[%clk 0:14:01.4]} 20. Nxd4 {[%clk 0:15:41.1]} 20... fxe5 {[%clk 0:13:55.7]}
21. fxe5 {[%clk 0:15:46]} 21... Rad8 {[%clk 0:13:55]} 22. Nc6+ {[%clk
0:15:50.1]} 22... Kd7 {[%clk 0:13:54.7]} 23. Nxd8 {[%clk 0:15:54.5]} 23... Rxd8
{[%clk 0:13:57.2]} 24. Nf7+ {[%clk 0:15:59.1]} 24... Ke7 {[%clk 0:13:49.2]} 25.
Nxd8 {[%clk 0:16:04]} 25... Bxd8 {[%clk 0:13:52.9]} 26. Rd3 {[%clk 0:16:01.7]}
26... Ke8 {[%clk 0:13:46.3]} 27. Rhd1 {[%clk 0:16:05.3]} 27... Bg5+ {[%clk
0:13:45.5]} 28. Kb1 {[%clk 0:16:09.2]} 28... Kf7 {[%clk 0:13:48.9]} 29. Rd7+
{[%clk 0:16:13]} 29... Kg6 {[%clk 0:13:52.6]} 30. Rb7 {[%clk 0:16:15.1]} 30...
h6 {[%clk 0:13:48.9]} 31. Rdd7 {[%clk 0:16:18.8]} 31... h5 {[%clk 0:13:08.5]}
32. Rxg7+ {[%clk 0:16:20.4]} 32... Kh6 {[%clk 0:13:12.5]} 33. Rh7+ {[%clk
0:16:19]} 33... Kg6 {[%clk 0:13:15.9]} 34. Rbg7# {[%clk 0:16:23.5]} 1-0

[Event "Live Chess"]
[Site "Chess.com"]
[Date "2023.09.16"]
[Round "-"]
[White "KauaShelby015"]
[Black "maylso"]
[Result "1/2-1/2"]
[WhiteElo "1293"]
[BlackElo "1430"]
[TimeControl "900+5"]
[EndTime "8:01:03 PDT"]
[Termination "Partida empatada por acordo"]

1. d4 {[%clk 0:15:03.4]} 1... Nf6 {[%clk 0:15:03.2]} 2. c4 {[%clk 0:15:05.6]}
2... g6 {[%clk 0:15:06.3]} 3. Nc3 {[%clk 0:15:08.7]} 3... Bg7 {[%clk 0:15:09.6]}
4. g3 {[%clk 0:15:00.3]} 4... O-O {[%clk 0:14:58.9]} 5. Bg2 {[%clk 0:15:02.8]}
5... d6 {[%clk 0:15:00.3]} 6. e4 {[%clk 0:15:06.1]} 6... e5 {[%clk 0:15:01]} 7.
d5 {[%clk 0:15:02.4]} 7... Nbd7 {[%clk 0:15:03.9]} 8. Nf3 {[%clk 0:15:03.4]}
8... Nc5 {[%clk 0:14:51.2]} 9. O-O {[%clk 0:14:47.3]} 9... Ncxe4 {[%clk
0:14:44.3]} 10. Nxe4 {[%clk 0:14:50.5]} 10... Nxe4 {[%clk 0:14:49.2]} 11. Nxe5
{[%clk 0:14:52.7]} 11... Nxf2 {[%clk 0:14:14.5]} 12. Rxf2 {[%clk 0:14:29]} 12...
Bxe5 {[%clk 0:14:16]} 13. Bf4 {[%clk 0:14:24.9]} 13... Bxf4 {[%clk 0:13:49.2]}
14. Rxf4 {[%clk 0:14:27.3]} 14... Bf5 {[%clk 0:13:52]} 15. Rc1 {[%clk
0:14:28.7]} 15... Re8 {[%clk 0:13:38.4]} 16. c5 {[%clk 0:14:30.7]} 16... Qf6
{[%clk 0:13:22.4]} 17. cxd6 {[%clk 0:14:30.6]} 17... cxd6 {[%clk 0:13:23]} 18.
Qb3 {[%clk 0:14:29.7]} 18... Re7 {[%clk 0:13:12.5]} 19. g4 {[%clk 0:14:26.5]}
19... Qh4 {[%clk 0:12:38.8]} 20. Qc3 {[%clk 0:13:38]} 20... Bd7 {[%clk
0:11:40.1]} 21. Rcf1 {[%clk 0:13:31.1]} 21... Rae8 {[%clk 0:11:02.1]} 22. Qf3
{[%clk 0:13:15.3]} 22... Re1 {[%clk 0:10:17.9]} 23. Rxf7 {[%clk 0:12:57.4]}
23... Rxf1+ {[%clk 0:10:00.7]} 24. Bxf1 {[%clk 0:12:59.7]} 24... Bxg4 {[%clk
0:09:24.9]} 25. Qf6 {[%clk 0:12:23.7]} 1/2-1/2

[Event "Live Chess"]
[Site "Chess.com"]
[Date "2023.09.16"]
[Round "-"]
[White "z_anne_ari"]
[Black "Edson_Zarnelli"]
[Result "1-0"]
[WhiteElo "1259"]
[BlackElo "787"]
[TimeControl "900+5"]
[EndTime "8:01:16 PDT"]
[Termination "z_anne_ari venceu por xeque-mate"]

1. d4 {[%clk 0:15:04.5]} 1... d5 {[%clk 0:14:49.1]} 2. c4 {[%clk 0:15:06.7]}
2... e6 {[%clk 0:14:50.1]} 3. Nc3 {[%clk 0:15:10.9]} 3... c6 {[%clk 0:14:50.8]}
4. Nf3 {[%clk 0:15:13.7]} 4... Bb4 {[%clk 0:14:51.2]} 5. e3 {[%clk 0:15:08.8]}
5... Bxc3+ {[%clk 0:14:55]} 6. bxc3 {[%clk 0:15:12.5]} 6... dxc4 {[%clk
0:14:58.8]} 7. Bxc4 {[%clk 0:15:15.4]} 7... b5 {[%clk 0:15:01.4]} 8. Bd3 {[%clk
0:15:19.1]} 8... Nf6 {[%clk 0:15:01.4]} 9. O-O {[%clk 0:15:20.9]} 9... O-O
{[%clk 0:15:05.1]} 10. Bc2 {[%clk 0:15:20.7]} 10... Qe8 {[%clk 0:14:59.9]} 11.
e4 {[%clk 0:15:17.5]} 11... Nbd7 {[%clk 0:14:57.1]} 12. e5 {[%clk 0:15:20.6]}
12... Nd5 {[%clk 0:14:41.9]} 13. Bxh7+ {[%clk 0:15:24.2]} 13... Kxh7 {[%clk
0:14:44.1]} 14. Ng5+ {[%clk 0:15:28.6]} 14... Kg6 {[%clk 0:14:24.6]} 15. Qd3+
{[%clk 0:15:24.1]} 15... Kh5 {[%clk 0:14:20.7]} 16. Qh7+ {[%clk 0:15:26]} 16...
Kg4 {[%clk 0:14:23.8]} 17. Qh3# {[%clk 0:15:23.5]} 1-0